[Event "*** Titled Tuesday Blitz"]
[Site "Chess.com"]
[Date "2019.09.03"]
[Round "1"]
[White "51616516516"]
[Black "adriangschnitzer"]
[Result "1-0"]
[WhiteElo "2170"]
[BlackElo "2544"]
[TimeControl "180+2"]
[EndTime "15:11:06 PDT"]
[Termination "51616516516 won by checkmate"]

1. c4 {[%clk 0:02:55.4]} 1... Nf6 {[%clk 0:03:00.4]} 2. d4 {[%clk 0:02:28.6]}
2... c5 {[%clk 0:03:00.2]} 3. Nf3 {[%clk 0:02:29.4]} 3... cxd4 {[%clk
0:03:01.2]} 4. Nxd4 {[%clk 0:02:30.7]} 4... Nc6 {[%clk 0:03:02.8]} 5. Nc3 {[%clk
0:02:30.6]} 5... e6 {[%clk 0:03:03.9]} 6. g3 {[%clk 0:02:31.7]} 6... Qb6 {[%clk
0:03:03.4]} 7. Nb3 {[%clk 0:02:29.2]} 7... a5 {[%clk 0:02:54.3]} 8. Bg2 {[%clk
0:02:04.9]} 8... a4 {[%clk 0:02:53.9]} 9. Nd2 {[%clk 0:02:05.8]} 9... Bc5 {[%clk
0:02:37.1]} 10. O-O {[%clk 0:02:05]} 10... Ng4 {[%clk 0:02:38]} 11. Nde4 {[%clk
0:01:59.6]} 11... Be7 {[%clk 0:02:27.9]} 12. Nxa4 {[%clk 0:01:46.5]} 12... Qb4
{[%clk 0:02:26]} 13. Nac3 {[%clk 0:01:43.7]} 13... Qxc4 {[%clk 0:02:25.1]} 14.
Nd6+ {[%clk 0:01:40.1]} 14... Bxd6 {[%clk 0:02:26.2]} 15. Qxd6 {[%clk 0:01:42]}
15... Qb4 {[%clk 0:02:22.6]} 16. Bf4 {[%clk 0:01:23.9]} 16... e5 {[%clk
0:02:06.2]} 17. Qxb4 {[%clk 0:01:06.5]} 17... Nxb4 {[%clk 0:02:08.1]} 18. Bd2
{[%clk 0:01:00.9]} 18... O-O {[%clk 0:02:05.1]} 19. Nb5 {[%clk 0:00:45.1]} 19...
Nc6 {[%clk 0:02:00.2]} 20. Nc7 {[%clk 0:00:42.3]} 20... Ra4 {[%clk 0:01:50.3]}
21. b3 {[%clk 0:00:41.9]} 21... Ra3 {[%clk 0:01:44]} 22. Bxc6 {[%clk 0:00:41.6]}
22... bxc6 {[%clk 0:01:41.8]} 23. Bb4 {[%clk 0:00:41.5]} 23... Ra7 {[%clk
0:01:43]} 24. Bd6 {[%clk 0:00:18.4]} 24... f6 {[%clk 0:01:37.6]} 25. h3 {[%clk
0:00:15.8]} 25... Nh6 {[%clk 0:01:37.8]} 26. Rfc1 {[%clk 0:00:11.7]} 26... Rf7
{[%clk 0:01:04.4]} 27. Nd5 {[%clk 0:00:12.6]} 27... Nf5 {[%clk 0:01:02.8]} 28.
Bc5 {[%clk 0:00:08.9]} 28... Ra5 {[%clk 0:01:01.8]} 29. Ne3 {[%clk 0:00:08.7]}
29... Nxe3 {[%clk 0:00:59.6]} 30. Bxe3 {[%clk 0:00:10.6]} 30... f5 {[%clk
0:00:56.2]} 31. b4 {[%clk 0:00:11.4]} 31... Ra3 {[%clk 0:00:54]} 32. b5 {[%clk
0:00:11]} 32... f4 {[%clk 0:00:49.2]} 33. Bc5 {[%clk 0:00:11.1]} 33... Ra8
{[%clk 0:00:42.5]} 34. b6 {[%clk 0:00:11.7]} 34... d5 {[%clk 0:00:36]} 35. a4
{[%clk 0:00:10.9]} 35... Bb7 {[%clk 0:00:36.2]} 36. a5 {[%clk 0:00:11.8]} 36...
Ra6 {[%clk 0:00:36.1]} 37. Bd6 {[%clk 0:00:10.1]} 37... fxg3 {[%clk 0:00:35.2]}
38. fxg3 {[%clk 0:00:10.2]} 38... e4 {[%clk 0:00:36.5]} 39. Rf1 {[%clk 0:00:06]}
39... Rxf1+ {[%clk 0:00:37.5]} 40. Rxf1 {[%clk 0:00:06.7]} 40... Ra8 {[%clk
0:00:30.3]} 41. Bb4 {[%clk 0:00:04.5]} 41... g6 {[%clk 0:00:29]} 42. e3 {[%clk
0:00:05.5]} 42... Kg7 {[%clk 0:00:21.5]} 43. Bc3+ {[%clk 0:00:06.5]} 43... Kg8
{[%clk 0:00:22.8]} 44. Rf6 {[%clk 0:00:07.7]} 44... Rf8 {[%clk 0:00:22.4]} 45.
Rxf8+ {[%clk 0:00:05.7]} 45... Kxf8 {[%clk 0:00:24.3]} 46. Bb4+ {[%clk
0:00:04.9]} 46... Kf7 {[%clk 0:00:24.9]} 47. Kf2 {[%clk 0:00:05.4]} 47... Ba6
{[%clk 0:00:25.9]} 48. g4 {[%clk 0:00:06.2]} 48... Ke6 {[%clk 0:00:25]} 49. Kg3
{[%clk 0:00:07.4]} 49... g5 {[%clk 0:00:23.9]} 50. Bc5 {[%clk 0:00:08.1]} 50...
Ke5 {[%clk 0:00:24.3]} 51. h4 {[%clk 0:00:08.7]} 51... gxh4+ {[%clk 0:00:20.7]}
52. Kxh4 {[%clk 0:00:08.7]} 52... Ke6 {[%clk 0:00:20.1]} 53. Kg5 {[%clk
0:00:09.3]} 53... Kd7 {[%clk 0:00:15.7]} 54. Kh6 {[%clk 0:00:09.4]} 54... Kc8
{[%clk 0:00:10.1]} 55. Kxh7 {[%clk 0:00:09.9]} 55... Be2 {[%clk 0:00:11.4]} 56.
g5 {[%clk 0:00:10.9]} 56... Bh5 {[%clk 0:00:13]} 57. g6 {[%clk 0:00:11.8]} 57...
Bxg6+ {[%clk 0:00:14.4]} 58. Kxg6 {[%clk 0:00:13]} 58... Kb7 {[%clk 0:00:16.3]}
59. Kf6 {[%clk 0:00:13.3]} 59... Ka6 {[%clk 0:00:18.2]} 60. Ke6 {[%clk 0:00:14]}
60... Kb7 {[%clk 0:00:19.8]} 61. Kd6 {[%clk 0:00:15.1]} 61... d4 {[%clk
0:00:21.7]} 62. Bxd4 {[%clk 0:00:15]} 62... Ka6 {[%clk 0:00:23]} 63. Ke5 {[%clk
0:00:12.8]} 63... c5 {[%clk 0:00:20.1]} 64. Bxc5 {[%clk 0:00:12.3]} 64... Kb7
{[%clk 0:00:20.1]} 65. Kxe4 {[%clk 0:00:13.1]} 65... Kc6 {[%clk 0:00:21.6]} 66.
a6 {[%clk 0:00:13.3]} 66... Kxc5 {[%clk 0:00:16]} 67. b7 {[%clk 0:00:13.3]}
67... Kc6 {[%clk 0:00:15.9]} 68. b8=Q {[%clk 0:00:13.5]} 68... Kc5 {[%clk
0:00:17.8]} 69. a7 {[%clk 0:00:13.1]} 69... Kc6 {[%clk 0:00:18.2]} 70. a8=Q+
{[%clk 0:00:13.4]} 70... Kc5 {[%clk 0:00:18.3]} 71. Qd5# {[%clk 0:00:13.7]} 1-0

[Event "*** Titled Tuesday Blitz"]
[Site "Chess.com"]
[Date "2019.09.03"]
[Round "1"]
[White "Bigfish1995"]
[Black "scaryninja"]
[Result "1-0"]
[WhiteElo "3062"]
[BlackElo "2512"]
[TimeControl "180+2"]
[EndTime "15:11:14 PDT"]
[Termination "Bigfish1995 won by resignation"]

1. d4 {[%clk 0:03:00.7]} 1... d5 {[%clk 0:03:00.2]} 2. c4 {[%clk 0:03:01.6]}
2... e6 {[%clk 0:03:01.3]} 3. Nc3 {[%clk 0:03:00.8]} 3... Be7 {[%clk 0:03:01.9]}
4. Bf4 {[%clk 0:03:01.1]} 4... Nf6 {[%clk 0:03:00]} 5. e3 {[%clk 0:03:02.3]}
5... O-O {[%clk 0:03:00.6]} 6. Nf3 {[%clk 0:03:03.3]} 6... b6 {[%clk 0:02:58.3]}
7. Be2 {[%clk 0:03:01.3]} 7... Bb7 {[%clk 0:02:57.9]} 8. O-O {[%clk 0:03:01.6]}
8... Nbd7 {[%clk 0:02:57.1]} 9. Rc1 {[%clk 0:03:00.5]} 9... c5 {[%clk
0:02:56.1]} 10. dxc5 {[%clk 0:02:59.2]} 10... Nxc5 {[%clk 0:02:55.1]} 11. Ne5
{[%clk 0:02:33.8]} 11... Rc8 {[%clk 0:02:34.2]} 12. Nb5 {[%clk 0:02:01.2]} 12...
a6 {[%clk 0:02:29.7]} 13. Na7 {[%clk 0:01:43.7]} 13... Rc7 {[%clk 0:02:23.1]}
14. b4 {[%clk 0:01:43.9]} 14... Nce4 {[%clk 0:02:03.4]} 15. b5 {[%clk 0:01:30]}
15... Bd6 {[%clk 0:01:43.9]} 16. Nac6 {[%clk 0:01:26.5]} 16... Qa8 {[%clk
0:01:35]} 17. f3 {[%clk 0:01:10.8]} 17... Nc5 {[%clk 0:01:14.9]} 18. Qd2 {[%clk
0:00:54.2]} 18... axb5 {[%clk 0:01:01.2]} 19. cxb5 {[%clk 0:00:54.5]} 19... Bxc6
{[%clk 0:01:01.8]} 20. Nxc6 {[%clk 0:00:52.9]} 20... Bxf4 {[%clk 0:01:01.7]} 21.
exf4 {[%clk 0:00:54.8]} 21... Nfd7 {[%clk 0:00:44.6]} 22. Rc2 {[%clk 0:00:54.1]}
22... Nb8 {[%clk 0:00:44.8]} 23. Nb4 {[%clk 0:00:51.3]} 23... Qa4 {[%clk
0:00:42.6]} 24. Rfc1 {[%clk 0:00:51.8]} 24... Rd7 {[%clk 0:00:38]} 25. Qd4
{[%clk 0:00:47.3]} 25... Rdd8 {[%clk 0:00:35.2]} 26. Nc6 {[%clk 0:00:44.1]}
26... Qxd4+ {[%clk 0:00:33]} 27. Nxd4 {[%clk 0:00:46]} 27... Rd7 {[%clk
0:00:32.9]} 28. Nb3 {[%clk 0:00:24.7]} 28... Nxb3 {[%clk 0:00:30.4]} 29. axb3
{[%clk 0:00:26]} 29... Rfd8 {[%clk 0:00:29.8]} 30. Kf2 {[%clk 0:00:25.3]} 30...
Kf8 {[%clk 0:00:30.9]} 31. Bd3 {[%clk 0:00:24.5]} 31... g6 {[%clk 0:00:29.6]}
32. Ra2 {[%clk 0:00:24.5]} 32... Ke7 {[%clk 0:00:28.7]} 33. Ke3 {[%clk
0:00:24.6]} 33... Rb7 {[%clk 0:00:29.8]} 34. Kd4 {[%clk 0:00:24.4]} 34... Nd7
{[%clk 0:00:30.6]} 35. b4 {[%clk 0:00:24.8]} 35... f6 {[%clk 0:00:27.9]} 36. Rc6
{[%clk 0:00:24.5]} 36... Nb8 {[%clk 0:00:26.4]} 37. Rc1 {[%clk 0:00:22.3]} 37...
Rdd7 {[%clk 0:00:27.8]} 38. Re2 {[%clk 0:00:22]} 38... Kd6 {[%clk 0:00:27.5]}
39. g4 {[%clk 0:00:12.4]} 39... Rbc7 {[%clk 0:00:23]} 40. Rce1 {[%clk 0:00:13]}
40... Re7 {[%clk 0:00:23.4]} 41. g5 {[%clk 0:00:14.4]} 41... fxg5 {[%clk
0:00:19.4]} 42. fxg5 {[%clk 0:00:15.7]} 42... Nd7 {[%clk 0:00:20.9]} 43. f4
{[%clk 0:00:17.2]} 43... Rc8 {[%clk 0:00:18.4]} 44. h4 {[%clk 0:00:18.4]} 44...
Rf8 {[%clk 0:00:19.2]} 45. Rf1 {[%clk 0:00:17.6]} 45... Kc7 {[%clk 0:00:15.3]}
46. Rc1+ {[%clk 0:00:17.9]} 46... Kb7 {[%clk 0:00:14.5]} 47. Ke3 {[%clk
0:00:18.9]} 47... e5 {[%clk 0:00:14.8]} 48. fxe5 {[%clk 0:00:15.9]} 48... Nxe5
{[%clk 0:00:16.2]} 49. Kd2 {[%clk 0:00:12.5]} 49... Nf3+ {[%clk 0:00:16.5]} 50.
Kd1 {[%clk 0:00:13.4]} 50... Rxe2 {[%clk 0:00:16.4]} 51. Kxe2 {[%clk 0:00:14.3]}
51... Nxh4 {[%clk 0:00:16.1]} 52. Ke3 {[%clk 0:00:13.5]} 52... Nf5+ {[%clk
0:00:16.5]} 53. Kf4 {[%clk 0:00:12.6]} 53... Nd6+ {[%clk 0:00:09.2]} 54. Ke5
{[%clk 0:00:12.7]} 54... Ne4 {[%clk 0:00:10.3]} 55. Rg1 {[%clk 0:00:09.4]} 55...
Rf5+ {[%clk 0:00:08]} 56. Ke6 {[%clk 0:00:10.9]} 56... Nxg5+ {[%clk 0:00:06.3]}
57. Kd6 {[%clk 0:00:10]} 57... Rf6+ {[%clk 0:00:07.6]} 58. Ke7 {[%clk
0:00:11.1]} 58... Re6+ {[%clk 0:00:08.3]} 59. Kd7 {[%clk 0:00:12.3]} 59... Re5
{[%clk 0:00:09.7]} 60. Rc1 {[%clk 0:00:11.7]} 60... Nf7 {[%clk 0:00:04.9]} 61.
Rc7+ {[%clk 0:00:12]} 61... Kb8 {[%clk 0:00:06.4]} 62. Rc6 {[%clk 0:00:12.7]}
62... Kb7 {[%clk 0:00:06.2]} 63. Rf6 {[%clk 0:00:13.3]} 63... Ng5 {[%clk
0:00:05.7]} 64. Rf8 {[%clk 0:00:13.2]} 64... Ne6 {[%clk 0:00:05.4]} 65. Re8
{[%clk 0:00:10.1]} 65... Nc5+ {[%clk 0:00:06.1]} 66. bxc5 {[%clk 0:00:11]} 66...
Rxe8 {[%clk 0:00:06.3]} 67. c6+ {[%clk 0:00:12.6]} 67... Kb8 {[%clk 0:00:07.1]}
68. Kxe8 {[%clk 0:00:14]} 68... Kc7 {[%clk 0:00:09]} 69. Ke7 {[%clk 0:00:15.3]}
69... h5 {[%clk 0:00:10.3]} 70. Bxg6 {[%clk 0:00:12.3]} 70... h4 {[%clk
0:00:11.6]} 71. Ke6 {[%clk 0:00:13.8]} 71... d4 {[%clk 0:00:13.1]} 72. Kd5
{[%clk 0:00:15.2]} 72... h3 {[%clk 0:00:14.3]} 73. Kxd4 {[%clk 0:00:16.5]} 1-0

[Event "*** Titled Tuesday Blitz"]
[Site "Chess.com"]
[Date "2019.09.03"]
[Round "1"]
[White "Alexander_Moskalenko"]
[Black "slowdgehammer"]
[Result "1-0"]
[WhiteElo "2836"]
[BlackElo "2424"]
[TimeControl "180+2"]
[EndTime "15:11:24 PDT"]
[Termination "Alexander_Moskalenko won by checkmate"]

1. c4 {[%clk 0:02:57.8]} 1... Nf6 {[%clk 0:02:44.8]} 2. Nc3 {[%clk 0:02:58.1]}
2... e6 {[%clk 0:02:38.8]} 3. Nf3 {[%clk 0:02:57.2]} 3... d5 {[%clk 0:02:38.8]}
4. d4 {[%clk 0:02:57.3]} 4... a6 {[%clk 0:02:33]} 5. cxd5 {[%clk 0:02:43.1]}
5... exd5 {[%clk 0:02:27.1]} 6. Bg5 {[%clk 0:02:44.4]} 6... Be6 {[%clk
0:02:23.2]} 7. e3 {[%clk 0:02:45.4]} 7... Nbd7 {[%clk 0:02:20.9]} 8. Be2 {[%clk
0:02:42.4]} 8... c6 {[%clk 0:02:19.5]} 9. O-O {[%clk 0:02:41.9]} 9... Bd6 {[%clk
0:02:19.7]} 10. Bh4 {[%clk 0:02:36.4]} 10... Qb8 {[%clk 0:02:03.8]} 11. Bg3
{[%clk 0:02:33.4]} 11... Bxg3 {[%clk 0:02:03]} 12. hxg3 {[%clk 0:02:35.3]} 12...
O-O {[%clk 0:02:03.4]} 13. b4 {[%clk 0:02:34]} 13... Qd6 {[%clk 0:01:49.8]} 14.
Rb1 {[%clk 0:02:31.4]} 14... Bf5 {[%clk 0:01:46.1]} 15. Rb2 {[%clk 0:02:32.3]}
15... Rfe8 {[%clk 0:01:39.9]} 16. a4 {[%clk 0:02:32.3]} 16... b5 {[%clk
0:01:41]} 17. a5 {[%clk 0:02:29.1]} 17... h6 {[%clk 0:01:40.9]} 18. Nd2 {[%clk
0:02:28.2]} 18... Re7 {[%clk 0:01:30.2]} 19. Qb3 {[%clk 0:02:26.1]} 19... Rae8
{[%clk 0:01:26.8]} 20. Rc1 {[%clk 0:02:27.3]} 20... Nf8 {[%clk 0:01:18.9]} 21.
Nd1 {[%clk 0:02:21.5]} 21... Ng6 {[%clk 0:01:14.6]} 22. Bd3 {[%clk 0:02:22.7]}
22... Bd7 {[%clk 0:01:08.9]} 23. Qc3 {[%clk 0:02:17.9]} 23... Ng4 {[%clk
0:01:04.9]} 24. Qc5 {[%clk 0:02:12.2]} 24... Qf6 {[%clk 0:01:05.2]} 25. Nf3
{[%clk 0:02:13.2]} 25... h5 {[%clk 0:01:01]} 26. Rbc2 {[%clk 0:02:06.9]} 26...
Re6 {[%clk 0:00:58.2]} 27. Qa7 {[%clk 0:02:06.5]} 27... Bc8 {[%clk 0:00:58.4]}
28. Qb6 {[%clk 0:02:03.6]} 28... Ne7 {[%clk 0:00:45.4]} 29. Qc7 {[%clk
0:01:58.5]} 29... g5 {[%clk 0:00:40.1]} 30. Rc5 {[%clk 0:01:55.4]} 30... Kg7
{[%clk 0:00:39.5]} 31. Nh2 {[%clk 0:01:40.3]} 31... Nxh2 {[%clk 0:00:24.6]} 32.
Kxh2 {[%clk 0:01:42.2]} 32... h4 {[%clk 0:00:24.3]} 33. R5c2 {[%clk 0:01:41.1]}
33... hxg3+ {[%clk 0:00:23.8]} 34. Qxg3 {[%clk 0:01:43]} 34... Rh8+ {[%clk
0:00:24]} 35. Kg1 {[%clk 0:01:43.7]} 35... Qh6 {[%clk 0:00:25.1]} 36. f3 {[%clk
0:01:44.5]} 36... Ng6 {[%clk 0:00:24]} 37. Kf2 {[%clk 0:01:44.8]} 37... Nh4
{[%clk 0:00:23.6]} 38. Rc5 {[%clk 0:01:34.8]} 38... Qf6 {[%clk 0:00:23.7]} 39.
R1c3 {[%clk 0:01:30]} 39... Bd7 {[%clk 0:00:24.2]} 40. Bc2 {[%clk 0:01:30.7]}
40... Re7 {[%clk 0:00:25.4]} 41. Nb2 {[%clk 0:01:31.3]} 41... Rhe8 {[%clk
0:00:25.3]} 42. Nd1 {[%clk 0:01:31.6]} 42... Nf5 {[%clk 0:00:24.5]} 43. Bxf5
{[%clk 0:01:31.5]} 43... Qxf5 {[%clk 0:00:23.9]} 44. Nb2 {[%clk 0:01:29]} 44...
f6 {[%clk 0:00:21.7]} 45. e4 {[%clk 0:01:17.5]} 45... Qe6 {[%clk 0:00:18.6]} 46.
e5 {[%clk 0:01:17.2]} 46... Qf5 {[%clk 0:00:17.4]} 47. Nd3 {[%clk 0:01:16.3]}
47... Kg6 {[%clk 0:00:18.1]} 48. Kg1 {[%clk 0:01:03.8]} 48... Rh7 {[%clk
0:00:14.6]} 49. Kf2 {[%clk 0:01:00.6]} 49... Rhe7 {[%clk 0:00:14.8]} 50. Qg4
{[%clk 0:01:00.2]} 50... Qxg4 {[%clk 0:00:15.4]} 51. fxg4 {[%clk 0:01:02.1]}
51... Re6 {[%clk 0:00:12.4]} 52. Kf3 {[%clk 0:00:59.4]} 52... Kf7 {[%clk
0:00:12.6]} 53. Rc2 {[%clk 0:00:56.3]} 53... Ke7 {[%clk 0:00:13.8]} 54. exf6+
{[%clk 0:00:56.3]} 54... Rxf6+ {[%clk 0:00:14.6]} 55. Kg3 {[%clk 0:00:56.4]}
55... Kd6 {[%clk 0:00:16]} 56. Ne5 {[%clk 0:00:58.3]} 56... Rxe5 {[%clk
0:00:13.6]} 57. dxe5+ {[%clk 0:00:58.8]} 57... Kxe5 {[%clk 0:00:15.5]} 58. Re2+
{[%clk 0:00:52.7]} 58... Kd6 {[%clk 0:00:16.9]} 59. Rf2 {[%clk 0:00:53.4]} 59...
Re6 {[%clk 0:00:17.8]} 60. Rf5 {[%clk 0:00:42.1]} 60... Re4 {[%clk 0:00:17.6]}
61. Rxg5 {[%clk 0:00:42.4]} 61... Rxb4 {[%clk 0:00:18.3]} 62. Rc1 {[%clk
0:00:42.5]} 62... Ra4 {[%clk 0:00:17.6]} 63. Rg7 {[%clk 0:00:40.6]} 63... Rxa5
{[%clk 0:00:15.8]} 64. g5 {[%clk 0:00:42]} 64... Ra4 {[%clk 0:00:16.4]} 65. g6
{[%clk 0:00:43]} 65... Rg4+ {[%clk 0:00:14.5]} 66. Kf3 {[%clk 0:00:44.1]} 66...
Rg5 {[%clk 0:00:14.8]} 67. Re1 {[%clk 0:00:32.2]} 67... Bf5 {[%clk 0:00:14]} 68.
Rf7 {[%clk 0:00:25.5]} 68... Bxg6 {[%clk 0:00:11.7]} 69. Rf6+ {[%clk 0:00:26.1]}
69... Kc7 {[%clk 0:00:12.9]} 70. Ree6 {[%clk 0:00:22.8]} 70... Be4+ {[%clk
0:00:12.4]} 71. Kf4 {[%clk 0:00:24.2]} 71... Rxg2 {[%clk 0:00:12.5]} 72. Rxc6+
{[%clk 0:00:25.7]} 72... Kb7 {[%clk 0:00:13.6]} 73. Rb6+ {[%clk 0:00:26.8]}
73... Kc7 {[%clk 0:00:14.1]} 74. Rfc6+ {[%clk 0:00:27]} 74... Kd7 {[%clk
0:00:14.8]} 75. Rxa6 {[%clk 0:00:27.6]} 75... b4 {[%clk 0:00:15.8]} 76. Rcb6
{[%clk 0:00:27.8]} 76... Rb2 {[%clk 0:00:16]} 77. Ra7+ {[%clk 0:00:28.8]} 77...
Kc8 {[%clk 0:00:16.9]} 78. Ke5 {[%clk 0:00:30.1]} 78... Bg2 {[%clk 0:00:12.7]}
79. Kd6 {[%clk 0:00:30.9]} 79... d4 {[%clk 0:00:13.8]} 80. Rc7+ {[%clk 0:00:30]}
80... Kd8 {[%clk 0:00:09]} 81. Rb8# {[%clk 0:00:31.9]} 1-0

[Event "*** Titled Tuesday Blitz"]
[Site "Chess.com"]
[Date "2019.09.03"]
[Round "1"]
[White "matiss90"]
[Black "champ2005"]
[Result "1-0"]
[WhiteElo "2476"]
[BlackElo "2851"]
[TimeControl "180+2"]
[EndTime "15:11:30 PDT"]
[Termination "matiss90 won by resignation"]

1. e4 {[%clk 0:03:01.5]} 1... c6 {[%clk 0:03:00.2]} 2. d4 {[%clk 0:03:02.1]}
2... d5 {[%clk 0:03:01.4]} 3. Nc3 {[%clk 0:03:03.5]} 3... dxe4 {[%clk
0:03:01.4]} 4. Nxe4 {[%clk 0:03:04.6]} 4... Nf6 {[%clk 0:03:03]} 5. Ng5 {[%clk
0:03:05.2]} 5... h6 {[%clk 0:02:57.9]} 6. N5f3 {[%clk 0:03:06.1]} 6... Bg4
{[%clk 0:02:56.1]} 7. Bc4 {[%clk 0:03:06.6]} 7... e6 {[%clk 0:02:55.8]} 8. h3
{[%clk 0:03:07.9]} 8... Bxf3 {[%clk 0:02:56.3]} 9. Nxf3 {[%clk 0:03:08.8]} 9...
Nbd7 {[%clk 0:02:57.9]} 10. O-O {[%clk 0:03:09.9]} 10... Bd6 {[%clk 0:02:58.5]}
11. c3 {[%clk 0:03:10.7]} 11... O-O {[%clk 0:02:59.5]} 12. Re1 {[%clk
0:03:11.9]} 12... Qc7 {[%clk 0:03:00.7]} 13. a4 {[%clk 0:03:11.3]} 13... Rad8
{[%clk 0:03:01.3]} 14. a5 {[%clk 0:03:12]} 14... c5 {[%clk 0:03:01.6]} 15. Bf1
{[%clk 0:02:50.2]} 15... cxd4 {[%clk 0:02:59.1]} 16. Qxd4 {[%clk 0:02:47.9]}
16... Nc5 {[%clk 0:02:45.3]} 17. Qc4 {[%clk 0:02:34.8]} 17... Nd5 {[%clk
0:02:35.4]} 18. Qg4 {[%clk 0:02:03]} 18... Bf4 {[%clk 0:02:25.6]} 19. c4 {[%clk
0:01:49.3]} 19... Bxc1 {[%clk 0:02:15.1]} 20. cxd5 {[%clk 0:01:50.1]} 20... Bxb2
{[%clk 0:02:09.7]} 21. dxe6 {[%clk 0:01:51]} 21... Nxe6 {[%clk 0:01:37.5]} 22.
Rab1 {[%clk 0:01:49.2]} 22... Bf6 {[%clk 0:01:33.6]} 23. Qe4 {[%clk 0:01:39.5]}
23... Qxa5 {[%clk 0:01:20.1]} 24. Qxb7 {[%clk 0:01:37.9]} 24... Nd4 {[%clk
0:01:03.8]} 25. Nh2 {[%clk 0:01:28.4]} 25... h5 {[%clk 0:00:54.8]} 26. Bd3
{[%clk 0:00:54.5]} 26... Qc3 {[%clk 0:00:43.5]} 27. Qe4 {[%clk 0:00:46.8]} 27...
g6 {[%clk 0:00:36]} 28. Rec1 {[%clk 0:00:46.8]} 28... Qa5 {[%clk 0:00:30.8]} 29.
Bc4 {[%clk 0:00:44.1]} 29... Rd7 {[%clk 0:00:26.8]} 30. Qxg6+ {[%clk 0:00:43.8]}
30... Bg7 {[%clk 0:00:25]} 31. Qe4 {[%clk 0:00:41.1]} 31... Qf5 {[%clk
0:00:23.4]} 32. Qxf5 {[%clk 0:00:27.4]} 32... Nxf5 {[%clk 0:00:25.3]} 33. Nf3
{[%clk 0:00:28.5]} 33... Bf6 {[%clk 0:00:22.4]} 34. Rb5 {[%clk 0:00:25.5]} 34...
Nd6 {[%clk 0:00:23.4]} 35. Rxh5 {[%clk 0:00:18.2]} 35... Rc7 {[%clk 0:00:22]}
36. Nd2 {[%clk 0:00:05.6]} 36... Rfc8 {[%clk 0:00:20.1]} 37. Bxf7+ {[%clk
0:00:05]} 37... Nxf7 {[%clk 0:00:21.3]} 38. Rxc7 {[%clk 0:00:04]} 38... Rxc7
{[%clk 0:00:23.2]} 39. Ne4 {[%clk 0:00:05]} 39... Be5 {[%clk 0:00:22.1]} 40. g4
{[%clk 0:00:04]} 40... a5 {[%clk 0:00:22.9]} 41. g5 {[%clk 0:00:05]} 41... Kg7
{[%clk 0:00:22.8]} 42. Rh4 {[%clk 0:00:03.8]} 42... a4 {[%clk 0:00:22.4]} 43.
Ng3 {[%clk 0:00:05.1]} 43... a3 {[%clk 0:00:20]} 44. Ra4 {[%clk 0:00:06.2]}
44... Bb2 {[%clk 0:00:20.6]} 45. Ra6 {[%clk 0:00:07.1]} 45... Nxg5 {[%clk
0:00:21.4]} 46. Kg2 {[%clk 0:00:07.8]} 46... Rf7 {[%clk 0:00:19.1]} 47. h4
{[%clk 0:00:05.3]} 47... Nf3 {[%clk 0:00:20.5]} 48. h5 {[%clk 0:00:04.4]} 48...
Ne1+ {[%clk 0:00:21.7]} 49. Kh3 {[%clk 0:00:04.9]} 49... Nd3 {[%clk 0:00:23.6]}
50. h6+ {[%clk 0:00:05]} 50... Kh7 {[%clk 0:00:24.3]} 51. Kh4 {[%clk 0:00:02.9]}
51... Nxf2 {[%clk 0:00:23.4]} 52. Kh5 {[%clk 0:00:03]} 52... Nd3 {[%clk
0:00:22.4]} 53. Ne4 {[%clk 0:00:04.1]} 53... Nf4+ {[%clk 0:00:23.6]} 54. Kg4
{[%clk 0:00:05.1]} 54... Rf8 {[%clk 0:00:20.3]} 55. Ng5+ {[%clk 0:00:05.7]}
55... Kh8 {[%clk 0:00:20.2]} 56. Ra7 {[%clk 0:00:06]} 56... Ng6 {[%clk
0:00:18.5]} 57. Rh7+ {[%clk 0:00:05.7]} 57... Kg8 {[%clk 0:00:19.6]} 58. Ra7
{[%clk 0:00:05.6]} 58... Kh8 {[%clk 0:00:11.4]} 59. Rh7+ {[%clk 0:00:05.7]}
59... Kg8 {[%clk 0:00:13]} 60. Ra7 {[%clk 0:00:07.6]} 60... Nf4 {[%clk
0:00:13.2]} 61. Kh4 {[%clk 0:00:05.8]} 61... Nd5 {[%clk 0:00:12.9]} 62. Kh5
{[%clk 0:00:06.1]} 62... Nb4 {[%clk 0:00:12.8]} 63. Kg6 {[%clk 0:00:06.3]} 63...
Rf6+ {[%clk 0:00:14.2]} 64. Kh5 {[%clk 0:00:07.3]} 64... Rf8 {[%clk 0:00:15]}
65. Kg6 {[%clk 0:00:07.9]} 65... Rf6+ {[%clk 0:00:14.8]} 66. Kh5 {[%clk
0:00:08.8]} 66... Ra6 {[%clk 0:00:16]} 67. h7+ {[%clk 0:00:08.1]} 67... Kh8
{[%clk 0:00:16.3]} 68. Rxa6 {[%clk 0:00:09.1]} 1-0